[Event "8th Brazilian Open SESC Caioba 2024"]
[Site "Caioba"]
[Date "2024.06.24"]
[Round "1.1"]
[White "Mekhitarian, Krikor Sevag"]
[Black "Da Silva, Vinicius R. Rodrigue"]
[Result "1-0"]
[ECO "A06"]
[WhiteElo "2554"]
[BlackElo "1944"]
[Annotator "TA"]
[PlyCount "71"]
[EventDate "2024.06.15"]
[EventCountry "BRA"]
[SourceTitle "playchess.com"]
[Source "ChessBase"]
[SourceQuality "1"]
[TimeControl "5400+30"]

{[%evp 12,71,25,25,28,22,29,14,25,19,39,17,13,16,24,8,10,-4,0,-14,33,0,27,29,38,38,60,60,102,114,105,118,120,116,122,115,117,122,122,72,95,87,84,105,103,99,104,105,102,102,112,119,114,52,68,73,99,99,313,319,985,976]} 1. Nf3 {[%emt 0:00:24]} d5 {[%emt 0:00:12]} 2. c4 {[%emt 0:00:04]} c6 {[%emt 0:00:33]} 3. d4 {[%emt 0:00:08]} Nf6 {[%emt 0:00:31]} 4. e3 {[%emt 0:01:21]} e6 {[%emt 0:01:32]} 5. Bd3 {[%emt 0:02:55]} Bd6 {[%emt 0:02:51]} 6. b3 {[%emt 0:02:01]} Nbd7 {[%emt 0:03:29]} 7. Bb2 {[%emt 0:00:03]} b6 {[%emt 0:05:30]} 8. Nbd2 {[%emt 0:00:52]} Bb7 {[%emt 0:00:51]} 9. O-O {[%emt 0:00:12]} O-O {[%emt 1:19:31] The position is equal.} 10. Qe2 {[%emt 0:00:24]} Qc7 {[%emt 0:00:00]} 11. Rac1 {[%emt 0:17:35][%cal Ba1c1,Bc1c2,Bc2c6][%mdl 32]} Rad8 {[%emt 0:00:00]} 12. g3 {[%emt 0:13:23]} Rfe8 {[%emt 0:00:00]} 13. cxd5 {[%emt 0:02:22]} exd5 {[%emt 0:00:00]} 14. Bf5 {[%emt 0:00:04]} g6 {[%emt 0:00:00]} 15. Bh3 {[%emt 0:00:22]} Nf8 {[%emt 0:00:00]} (15... Ra8 $11) 16. Rc2 {[%emt 0:02:07]} Bc8 {[%emt 0:00:00]} 17. Bxc8 {[%emt 0:02:47]} Rxc8 {[%emt 0:00:00]} 18. Rfc1 {[%emt 0:03:15]} Qd7 {[%emt 0:00:00]} 19. Qa6 {[%emt 0:05:09]} h5 {[%emt 0:00:00] [#]} 20. Qa4 $1 {[%emt 0:02:33]} Ne4 {[%emt 0:00:00]} 21. Rxc6 {[%emt 0:02:02]} Nxd2 {[%emt 0:00:00]} 22. Nxd2 {[%emt 0:00:04]} Rcd8 {[%emt 0:00:00]} 23. Ba3 {[%emt 0:17:09]} Bb8 {[%emt 0:00:00][%cal Oh5h4]} 24. Bxf8 {[%emt 0:02:19]} Kxf8 {[%emt 0:00:00]} 25. Qa6 {[%emt 0:01:26]} (25. Nf3 $142) 25... h4 $16 {[%emt 0:00:00]} 26. Qe2 {[%emt 0:00:21] White is more active.} ({Of course not} 26. gxh4 $6 Qg4+ 27. Kf1 Bxh2 $15) 26... hxg3 {[%emt 0:00:00]} 27. hxg3 {[%emt 0:00:03]} Kg7 {[%emt 0:00:00]} 28. Qf3 {[%emt 0:00:23]} Re6 {[%emt 0:00:00] Wards off Qf6+} 29. Rxe6 {[%emt 0:00:23]} Qxe6 {[%emt 0:00:00]} 30. Nb1 {[%emt 0:03:28]} Rh8 {[%emt 0:00:00]} 31. Nc3 {[%emt 0:03:06]} Rh5 {[%emt 0:00:00]} 32. Ne2 {[%emt 0:01:49]} (32. g4 $16 Rg5 33. Kf1) 32... Qh3 {[%emt 0:00:00]} 33. Rc6 {[%emt 0:04:23]} Qh2+ {[%emt 0:00:00]} 34. Kf1 {[%emt 0:00:01] Dancing on a razor blade.} Rf5 {[%emt 0:00:00] [#]} (34... Qh3+ $16 35. Kg1 Qh2+ 36. Kf1 Qh3+ 37. Ke1 Rf5) 35. Qg2 $18 {[%emt 0:00:09]} Qh6 {[%emt 0:00:00]} (35... Rh5 36. Rc8 Qh1+ 37. Ng1 (37. Qxh1 Rxh1+ 38. Ng1 Rh8 $18) 37... Qxg2+ 38. Kxg2 Rh8 39. Rxh8 Kxh8) 36. g4 {[%emt 0:00:33] Weighted Error Value: White=0.09 (flawless) /Black=0.26 (precise) .  Loses game:     	---       	Black=1      Mistake:       	White=2     	Black=2      Inaccurate:     	White=1     	Black=3      OK:         	White=12    	Black=10     Best:        	White=1     	---        Strong:       	White=1     	---} 1-0

[Event "8th Brazilian Open SESC Caioba 2024"]
[Site "Caioba"]
[Date "2024.06.24"]
[Round "1.2"]
[White "Predebon, Eduardo Angonesi"]
[Black "Hernandez Guerrero, Gilberto"]
[Result "0-1"]
[ECO "B59"]
[WhiteElo "1834"]
[BlackElo "2506"]
[Annotator "TA"]
[PlyCount "40"]
[EventDate "2024.06.15"]
[EventCountry "BRA"]
[SourceTitle "playchess.com"]
[Source "ChessBase"]
[SourceQuality "1"]
[TimeControl "5400+30"]

{[%evp 16,40,21,0,0,0,0,0,0,0,-21,-72,-61,-56,-54,-160,-121,-154,-159,-172,-152,-601,-597,-593,-589,-1021,-1025]} 1. e4 {[%emt 0:00:03]} c5 {[%emt 0:00:14]} 2. Nf3 {[%emt 0:00:18]} Nc6 {[%emt 0:00:44]} 3. d4 {[%emt 0:01:06]} cxd4 {[%emt 0:00:06]} 4. Nxd4 {[%emt 0:00:10]} Nf6 {[%emt 0:00:13]} 5. Nc3 {[%emt 0:00:53]} d6 {[%emt 0:00:07]} 6. Be2 {[%emt 0:01:21]} e5 {[%emt 0:00:15]} 7. Nb3 {[%emt 0:00:23]} Be7 {[%emt 0:00:12]} 8. Be3 {[%emt 0:01:20]} O-O {[%emt 0:00:44]} 9. g4 {[%emt 0:01:44][%cal Bg2g4,Bg4g5][%mdl 32]} Be6 {[%emt 0:04:17]} 10. g5 {[%emt 0:05:26]} Nd7 {[%emt 0:01:38]} 11. h4 {[%emt 0:00:48]} a5 {[%emt 0:00:13][%cal Ba7a5,Ba5a4][%mdl 32] The position is equal.} 12. Nd5 {[%emt 0:06:55]} a4 {[%emt 0:01:41]} 13. Nc1 {[%emt 0:03:54]} (13. Nd2 $11 {remains equal.}) 13... Nc5 {[%emt 0:07:41]} 14. f3 {[%emt 0:03:20]} f5 {[%emt 0:03:21]} 15. Nd3 {[%emt 0:11:40]} (15. exf5 $15 Rxf5 16. c3) 15... fxe4 $17 {[%emt 0:05:09]} 16. Nxc5 {[%emt 0:01:40]} dxc5 {[%emt 0:00:09]} 17. fxe4 {[%emt 0:00:11]} Nd4 {[%emt 0:02:01]} 18. c3 $2 {[%emt 0:01:17] [#]} (18. Nxe7+ $17 Qxe7 19. c3) 18... Bxd5 $19 {[%emt 0:01:09] Black is clearly winning.} 19. exd5 {[%emt 0:01:20]} Qxd5 {[%emt 0:02:18]} 20. Rh3 {[%emt 0:01:37]} Qg2 {[%emt 0:00:54] Black took control after the opening.   Weighted Error Value: White=1.26/Black=0.01 (flawless) .  Loses game:     	White=1     	---        Mistake:       	White=2     	---        Inaccurate:     	White=1     	---        OK:         	White=3     	Black=4      Best:        	White=1     	Black=4} 0-1

[Event "8th Brazilian Open SESC Caioba 2024"]
[Site "Caioba"]
[Date "2024.06.24"]
[Round "1.3"]
[White "Barbosa, Evandro Amorim"]
[Black "Moro, Antonio Renato Perei"]
[Result "1-0"]
[ECO "C54"]
[WhiteElo "2491"]
[BlackElo "1833"]
[Annotator "RC"]
[PlyCount "129"]
[EventDate "2024.06.15"]
[EventCountry "BRA"]
[SourceTitle "playchess.com"]
[Source "ChessBase"]
[SourceQuality "1"]
[TimeControl "5400+30"]

1. e4 {[%emt 0:00:13]} Nc6 {[%emt 0:00:21]} 2. Nf3 {[%emt 0:01:29]} e5 {[%emt 0:00:51]} 3. Bc4 {[%emt 0:01:23]} Bc5 {[%emt 0:01:53]} 4. d3 {[%emt 0:00:31]} Nf6 {[%emt 0:02:08]} 5. O-O {[%emt 0:00:21]} d6 {[%emt 0:01:33]} 6. c3 {[%emt 0:00:15]} Bg4 {[%emt 0:02:23]} 7. Nbd2 {[%emt 0:00:33]} a6 {[%emt 0:01:26]} 8. Bb3 {[%emt 0:00:15]} O-O {[%emt 0:00:51]} 9. h3 {[%emt 0:00:12]} Bd7 {[%emt 0:03:06]} 10. Re1 {[%emt 0:00:44]} Ba7 {[%emt 0:00:21]} 11. Nf1 {[%emt 0:00:21]} h6 {[%emt 0:00:07]} 12. Ng3 {[%emt 0:01:16]} Na5 {[%emt 0:02:51]} 13. Bc2 {[%emt 0:00:10]} c5 {[%emt 0:00:57]} 14. Nh2 {[%emt 0:00:42]} Qc7 {[%emt 0:02:14]} 15. Qf3 {[%emt 0:00:23]} Nh7 {[%emt 0:05:20]} 16. Ng4 {[%emt 0:01:04]} f5 {[%emt 0:09:34]} 17. exf5 {[%emt 0:01:05]} Nc6 {[%emt 0:00:38]} 18. Ne3 {[%emt 0:03:21]} Rae8 {[%emt 0:02:16]} 19. Qd5+ {[%emt 0:04:38]} Kh8 {[%emt 0:03:25]} 20. Ne4 {[%emt 0:00:11]} Bb8 {[%emt 0:03:53]} 21. Nc4 {[%emt 0:01:06]} Bxf5 {[%emt 0:00:43]} 22. Ncxd6 {[%emt 0:29:53]} Rd8 {[%emt 0:04:37]} 23. Qxc5 {[%emt 0:01:17]} Rxd6 {[%emt 0:00:28]} 24. Qxd6 {[%emt 0:01:20]} Qxd6 {[%emt 0:00:34]} 25. Nxd6 {[%emt 0:00:05]} Bxd6 {[%emt 0:00:06]} 26. Be3 {[%emt 0:01:39]} Nf6 {[%emt 0:00:40]} 27. Rad1 {[%emt 0:00:15]} Re8 {[%emt 0:03:03]} 28. Re2 {[%emt 0:01:18]} Bg6 {[%emt 0:00:38]} 29. Bc1 {[%emt 0:01:09]} Rc8 {[%emt 0:01:52]} 30. Rf1 {[%emt 0:01:44]} Nd5 {[%emt 0:03:08]} 31. Rd1 {[%emt 0:03:38]} Bh5 {[%emt 0:00:42]} 32. g4 {[%emt 0:00:32]} Bf7 {[%emt 0:00:13]} 33. Rde1 {[%emt 0:05:03]} Nf6 {[%emt 0:01:51]} 34. Bb3 {[%emt 0:02:24]} Bg6 {[%emt 0:01:25]} 35. Rd1 {[%emt 0:00:21]} Rd8 {[%emt 0:05:34]} 36. Be3 {[%emt 0:02:31]} Bc7 {[%emt 0:00:15]} 37. Bc2 {[%emt 0:07:02]} Bf7 {[%emt 0:01:35]} 38. Bb3 {[%emt 0:00:41]} Bg6 {[%emt 0:00:39]} 39. Red2 {[%emt 0:00:21]} Ba5 {[%emt 0:01:22]} 40. Bc2 {[%emt 0:01:33]} Nd5 {[%emt 0:01:24]} 41. d4 {[%emt 0:03:52]} Bxc2 {[%emt 0:00:52]} 42. Rxc2 {[%emt 0:00:06]} exd4 {[%emt 0:01:34]} 43. Bxd4 {[%emt 0:00:09]} Nf4 {[%emt 0:00:48]} 44. Kf1 {[%emt 0:04:57]} Nxh3 {[%emt 0:01:34]} 45. Rcd2 {[%emt 0:00:38]} Nxd4 {[%emt 0:08:31]} 46. Rxd4 {[%emt 0:00:04]} Rf8 {[%emt 0:01:01]} 47. R1d2 {[%emt 0:03:29]} Bb6 {[%emt 0:00:25]} 48. Rd6 {[%emt 0:00:41]} Bxf2 {[%emt 0:03:08]} 49. Rd8 {[%emt 0:04:03]} Bc5+ {[%emt 0:02:52]} 50. Rxf8+ {[%emt 0:00:07]} Bxf8 {[%emt 0:00:11]} 51. Rd7 {[%emt 0:00:10]} Ng5 {[%emt 0:03:30]} 52. Rxb7 {[%emt 0:00:23]} Ne4 {[%emt 0:01:48]} 53. Ke2 {[%emt 0:01:02]} Nf6 {[%emt 0:01:41]} 54. Kf3 {[%emt 0:00:25]} Bc5 {[%emt 0:01:41]} 55. b4 {[%emt 0:00:41]} Bg1 {[%emt 0:00:28]} 56. c4 {[%emt 0:00:14]} Kg8 {[%emt 0:00:23]} 57. a4 {[%emt 0:00:30]} Kf8 {[%emt 0:01:18]} 58. a5 {[%emt 0:00:09]} Ne8 {[%emt 0:00:27]} 59. c5 {[%emt 0:01:03]} Bh2 {[%emt 0:00:40]} 60. b5 {[%emt 0:00:37]} Nc7 {[%emt 0:02:52]} 61. Kg2 {[%emt 0:06:43]} Bf4 {[%emt 0:00:24]} 62. b6 {[%emt 0:00:30]} Nb5 {[%emt 0:02:26]} 63. c6 {[%emt 0:00:11]} Ke8 {[%emt 0:01:28]} 64. Rxg7 {[%emt 0:00:19]} Nd6 {[%emt 0:01:38]} 65. c7 {[%emt 0:01:08]} 1-0

[Event "8th Brazilian Open SESC Caioba 2024"]
[Site "Caioba"]
[Date "2024.06.24"]
[Round "1.4"]
[White "Lunelli, Neuri Antonio"]
[Black "Delgado Ramirez, Neuris"]
[Result "0-1"]
[ECO "A36"]
[WhiteElo "1829"]
[BlackElo "2487"]
[Annotator "TA"]
[PlyCount "70"]
[EventDate "2024.06.15"]
[EventCountry "BRA"]
[SourceTitle "playchess.com"]
[Source "ChessBase"]
[SourceQuality "1"]
[TimeControl "5400+30"]

{[%evp 14,70,0,0,-3,0,4,0,0,-6,0,0,27,-35,19,-61,-51,-58,-54,-67,-73,-113,-109,-122,-121,-112,-77,-101,-68,-152,-148,-182,-137,-309,-291,-339,-292,-354,-342,-378,-383,-399,-408,-436,-441,-464,-439,-800,-772,-1165,-1135,-1175,-1111,-1312,-1300,-2250,-2162,-2390,-2175]} 1. e4 {[%emt 0:00:02]} c5 {[%emt 0:09:02]} 2. c4 {[%emt 0:00:12]} Nc6 {[%emt 0:00:14]} 3. Nc3 {[%emt 0:00:09]} g6 {[%emt 0:00:10]} 4. g3 {[%emt 0:00:07]} Bg7 {[%emt 0:00:10]} 5. Bg2 {[%emt 0:00:09]} e6 {[%emt 0:00:07]} 6. Nge2 {[%emt 0:01:02]} Nge7 {[%emt 0:00:06]} 7. d3 {[%emt 0:00:55]} d6 {[%emt 0:00:08]} 8. Be3 {[%emt 0:01:19]} Nd4 {[%emt 0:00:19]} 9. Qd2 {[%emt 0:01:22]} a6 {[%emt 0:01:10]} 10. O-O {[%emt 0:00:15]} h5 {[%emt 0:01:24] The position is equal.} 11. Bg5 {[%emt 0:01:53]} Rb8 {[%emt 0:00:43]} 12. Rab1 {[%emt 0:01:14]} b5 {[%emt 0:00:38]} 13. b3 {[%emt 0:00:12]} (13. cxb5 $11 axb5 14. b4) 13... Qc7 {[%emt 0:03:17]} ({Black should play} 13... b4 $15 14. Nd1 Nxe2+ 15. Qxe2 Bb7) 14. h4 {[%emt 0:06:39]} (14. cxb5 $11 axb5 15. b4) 14... b4 $15 {[%emt 0:00:21]} 15. Nd1 {[%emt 0:00:39]} Nec6 {[%emt 0:00:36]} 16. Be3 {[%emt 0:04:31]} a5 {[%emt 0:00:16] Black is more active.} 17. Bxd4 {[%emt 0:00:30]} Nxd4 {[%emt 0:00:13]} 18. Nxd4 {[%emt 0:00:03]} Bxd4 {[%emt 0:00:08]} 19. Kh2 {[%emt 0:00:47] White is weak on the dark squares} f6 {[%emt 0:02:33][%cal Og6g5]} 20. f4 {[%emt 0:00:29]} Qg7 {[%emt 0:01:15]} 21. Bh3 {[%emt 0:04:59]} (21. Ne3 $15) 21... Rg8 {[%emt 0:00:57]} 22. Qe2 {[%emt 0:03:16]} Kd8 {[%emt 0:01:25] Hoping for ...g5.} 23. Qf3 $2 {[%emt 0:07:24] [#] Loses the game.} (23. Ne3 $17 {was worth a try.}) 23... a4 $1 {[%emt 0:03:16][%mdl 512]} 24. Ne3 {[%emt 0:04:21]} (24. Rf2 g5) 24... axb3 {[%emt 0:01:29]} 25. axb3 {[%emt 0:00:14]} g5 {[%emt 0:00:57]} 26. fxg5 {[%emt 0:00:53]} fxg5 {[%emt 0:00:19]} 27. hxg5 {[%emt 0:00:41]} Qxg5 {[%emt 0:00:19]} 28. Rbe1 {[%emt 0:01:27]} Be5 {[%emt 0:00:23] Prevents Qf4. Black is clearly winning.} 29. Rg1 {[%emt 0:01:51]} h4 {[%emt 0:00:50]} 30. Nf1 {[%emt 0:01:13]} (30. Kh1 $142 hxg3 (30... Bxg3 $2 31. Ra1 $19) 31. Kg2) 30... Rb7 $19 {[%emt 0:00:40]} 31. Re2 {[%emt 0:02:35]} hxg3+ {[%emt 0:00:14]} 32. Kg2 {[%emt 0:06:26]} Qg6 {[%emt 0:01:35] ...Rf7 is the strong threat.} 33. Rh1 {[%emt 0:01:51]} Rf7 {[%emt 0:00:18]} 34. Qe3 {[%emt 0:00:29]} Bd4 {[%emt 0:00:45] [#] ( -> ...Qf6)} 35. Qxg3 {[%emt 0:04:12]} Be5 {[%emt 0:00:26] Weighted Error Value: White=1.18/Black=0.15 (very precise) .  Loses game:     	White=1     	---        Mistake:       	White=4     	Black=1      Inaccurate:     	White=2     	Black=3      OK:         	White=5     	Black=6      Best:        	---       	Black=1} 0-1

[Event "8th Brazilian Open SESC Caioba 2024"]
[Site "Caioba"]
[Date "2024.06.24"]
[Round "1.6"]
[White "Ribeiro Carrico, Victor Hugo"]
[Black "Di Berardino, Diego Rafael"]
[Result "0-1"]
[ECO "B84"]
[WhiteElo "1821"]
[BlackElo "2473"]
[Annotator "TA"]
[PlyCount "54"]
[EventDate "2024.06.15"]
[EventCountry "BRA"]
[SourceTitle "playchess.com"]
[Source "ChessBase"]
[SourceQuality "1"]
[TimeControl "5400+30"]

{[%evp 11,54,21,25,8,32,38,36,-22,0,-60,-50,-41,-31,-89,-86,-150,-141,-151,-132,-142,-133,-181,-136,-174,-179,-229,-205,-546,-551,-506,-457,-527,-510,-522,-531,-653,-652,-671,-663,-798,-787,-2610,-1085,-2228,-2153]} 1. e4 {[%emt 0:00:05]} c5 {[%emt 0:00:04]} 2. Nf3 {[%emt 0:00:20]} d6 {[%emt 0:00:34]} 3. d4 {[%emt 0:03:46]} cxd4 {[%emt 0:01:32]} 4. Nxd4 {[%emt 0:00:09]} Nf6 {[%emt 0:00:04]} 5. Nc3 {[%emt 0:00:06]} a6 {[%emt 0:01:38]} 6. Be2 {[%emt 0:00:41]} e6 {[%emt 0:00:55]} 7. Qd3 {[%emt 0:04:40]} Nc6 {[%emt 0:00:17]} 8. Nxc6 {[%emt 0:04:27]} bxc6 {[%emt 0:00:03] [#]} 9. e5 {[%emt 0:00:10]} dxe5 $11 {[%emt 0:01:21]} 10. Qc4 {[%emt 0:03:54]} (10. Qxd8+ $11 Kxd8 11. Na4) 10... Bb7 {[%emt 0:04:30]} 11. Be3 {[%emt 0:02:46]} Be7 {[%emt 0:00:46]} 12. Bf3 {[%emt 0:08:32]} ({White should play} 12. O-O $15) 12... O-O $17 {[%emt 0:01:24]} 13. g4 {[%emt 0:07:37]} (13. Qb3 $142 Qc7 14. Bb6) 13... Nd5 {[%emt 0:02:45]} 14. O-O-O {[%emt 0:00:12]} Nxe3 {[%emt 0:03:24]} 15. fxe3 {[%emt 0:00:32]} Qb6 {[%emt 0:00:05]} 16. Qe4 {[%emt 0:02:28]} (16. Kb1 $17 {is a better defense.}) 16... Qc7 {[%emt 0:03:46]} 17. h4 {[%emt 0:15:08]} Rab8 {[%emt 0:04:50] And now ...c5 would win.} 18. Qa4 {[%emt 0:07:33]} (18. Qc4 $142) 18... Qb6 $19 {[%emt 0:01:33]} 19. Rd3 {[%emt 0:05:49] [#]} (19. Nb1 {is a better chance.}) 19... c5 $1 {[%emt 0:02:30] Black is clearly winning.} 20. Ne4 {[%emt 0:04:58]} Bxe4 {[%emt 0:01:03] A strong pair of Bishops.} 21. Rb3 {[%emt 0:00:08]} Bxf3 {[%emt 0:01:51]} 22. Rxb6 {[%emt 0:00:24]} Rxb6 {[%emt 0:00:05]} 23. Rh2 {[%emt 0:03:06]} Rb4 {[%emt 0:04:34]} 24. Qxa6 {[%emt 0:08:41]} Rxg4 {[%emt 0:00:35]} 25. Qa7 {[%emt 0:04:42]} Bf6 {[%emt 0:07:10]} 26. Qxc5 {[%emt 0:01:40]} Rg1+ {[%emt 0:02:20]} 27. Kd2 {[%emt 0:00:08]} e4 {[%emt 0:00:33] White did not feel at home in the position after the opening.   Weighted Error Value: White=0.91/Black=0.07 (flawless) .  Mistake:       	White=7     	---        OK:         	White=6     	Black=7      Best:        	---       	Black=1      Strong:       	---       	Black=1} 0-1

[Event "8th Brazilian Open SESC Caioba 2024"]
[Site "Caioba"]
[Date "2024.06.24"]
[Round "1.7"]
[White "Santiago, Yago De Moura"]
[Black "Barbosa, Rafael Santos"]
[Result "1-0"]
[ECO "D90"]
[WhiteElo "2462"]
[BlackElo "1814"]
[Annotator "TA"]
[PlyCount "35"]
[EventDate "2024.06.15"]
[EventCountry "BRA"]
[SourceTitle "playchess.com"]
[Source "ChessBase"]
[SourceQuality "1"]
[TimeControl "5400+30"]

{[%evp 9,35,-8,-8,-14,-9,0,0,0,18,0,12,0,21,0,28,14,79,74,422,409,414,414,745,735,726,712,721,727]} 1. d4 {[%emt 0:00:12]} Nf6 {[%emt 0:00:15]} 2. c4 {[%emt 0:00:08]} g6 {[%emt 0:00:06]} 3. Nc3 {[%emt 0:00:06]} d5 {[%emt 0:00:13]} 4. Nf3 {[%emt 0:00:08]} Bg7 {[%emt 0:00:20]} 5. h4 {[%emt 0:00:08]} dxc4 {[%emt 0:03:46][%cal Oc7c5]} 6. e4 {[%emt 0:00:18][%cal Oe4e5] [#]} c5 $1 {[%emt 0:01:15]} 7. d5 {[%emt 0:00:09]} (7. Bxc4 cxd4) 7... b5 {[%emt 0:02:31] Inhibits Qa4.} 8. h5 $1 {[%emt 0:00:09] And now h6 would win. The position is equal.} (8. Nxb5 Qa5+ 9. Nc3 Nxe4 $15) 8... Nxh5 {[%emt 0:01:06]} (8... O-O $5) 9. Nxb5 {[%emt 0:00:10]} ({Reject} 9. e5 Bg4 10. Be2 (10. Nxb5 Nd7 $17) 10... O-O $15) 9... Bg4 {[%emt 0:01:02]} 10. Bxc4 {[%emt 0:01:21]} Nd7 {[%emt 0:01:15]} 11. Be2 {[%emt 0:01:30]} a6 {[%emt 0:15:35]} 12. Nc3 {[%emt 0:00:17]} Qc7 {[%emt 0:03:11]} (12... O-O $11 {keeps the balance.}) 13. Rh4 $16 {[%emt 0:12:30]} Ne5 {[%emt 0:06:27][%mdl 8192] [#] A mistake that costs the game.} (13... Nhf6 $16 {is tougher.}) 14. Nxe5 $18 {[%emt 0:01:11]} Bxe2 {[%emt 0:00:17]} 15. Qa4+ {[%emt 0:00:38]} ({Weaker is} 15. Nxe2 Qxe5 16. Qa4+ Kf8 $16) ({Less strong is} 15. Qxe2 Qxe5 16. Kf1 O-O $11) (15. Kxe2 Bxe5 16. Bh6 Rb8 $14) 15... Bb5 {[%emt 0:03:23]} (15... Kf8 $142 16. Nd7+ Kg8) 16. Nxb5 {[%emt 0:00:18][%cal Bc3b5,Bb5c7,Bc7a8][%mdl 32] White is clearly winning.} Qxe5 {[%emt 0:00:05]} 17. Nc7+ {[%emt 0:00:29]} Kf8 {[%emt 0:00:02]} 18. Nxa8 {[%emt 0:00:10] Weighted Error Value: White=0.02 (flawless) /Black=0.69.  Loses game:     	---       	Black=1      Mistake:       	---       	Black=2      Inaccurate:     	---       	Black=1      OK:         	White=4     	Black=5      Best:        	White=3     	---        Strong:       	White=1     	---} 1-0

[Event "8th Brazilian Open SESC Caioba 2024"]
[Site "Caioba"]
[Date "2024.06.24"]
[Round "1.9"]
[White "Acosta, Pablo Ismael"]
[Black "Setti, Dalmarino"]
[Result "1-0"]
[ECO "D55"]
[WhiteElo "2449"]
[BlackElo "1791"]
[Annotator "RC"]
[PlyCount "92"]
[EventDate "2024.06.15"]
[EventCountry "BRA"]
[SourceTitle "playchess.com"]
[Source "ChessBase"]
[SourceQuality "1"]
[TimeControl "5400+30"]

1. Nf3 {[%emt 0:00:09]} Nf6 {[%emt 0:00:12]} 2. d4 {[%emt 0:00:15]} d5 {[%emt 0:00:40]} 3. c4 {[%emt 0:00:08]} e6 {[%emt 0:00:09]} 4. Nc3 {[%emt 0:00:04]} Be7 {[%emt 0:00:33]} 5. Bg5 {[%emt 0:00:12]} O-O {[%emt 0:00:58]} 6. e3 {[%emt 0:00:25]} h6 {[%emt 0:00:43]} 7. Bxf6 {[%emt 0:00:14]} Bxf6 {[%emt 0:00:15]} 8. Rc1 {[%emt 0:00:06]} b6 {[%emt 0:03:50]} 9. Bd3 {[%emt 0:02:21]} dxc4 {[%emt 0:05:56]} 10. Bxc4 {[%emt 0:01:28]} Bb7 {[%emt 0:00:15]} 11. O-O {[%emt 0:00:08]} Nd7 {[%emt 0:01:42]} 12. Qe2 {[%emt 0:01:18]} c5 {[%emt 0:05:17]} 13. Rfd1 {[%emt 0:01:36]} Qe7 {[%emt 0:02:42]} 14. d5 {[%emt 0:03:30]} Bxc3 {[%emt 0:01:39]} 15. dxe6 {[%emt 0:07:32]} fxe6 {[%emt 0:03:49]} 16. Rxc3 {[%emt 0:00:07]} Bxf3 {[%emt 0:02:03]} 17. gxf3 {[%emt 0:00:05]} Ne5 {[%emt 0:00:53]} 18. f4 {[%emt 0:00:10]} Nxc4 {[%emt 0:00:34]} 19. Qxc4 {[%emt 0:00:16]} Kh8 {[%emt 0:03:44]} 20. Rcd3 {[%emt 0:00:57]} e5 {[%emt 0:01:36]} 21. Qe4 {[%emt 0:01:52]} Rae8 {[%emt 0:01:34]} 22. Rd7 {[%emt 0:02:01]} Qf6 {[%emt 0:05:29]} 23. R1d6 {[%emt 0:02:20]} Re6 {[%emt 0:06:36]} 24. Qxe5 {[%emt 0:02:31]} Qg6+ {[%emt 0:00:59]} 25. Kf1 {[%emt 0:00:12]} Rxd6 {[%emt 0:08:19]} 26. Rxd6 {[%emt 0:01:05]} Qb1+ {[%emt 0:04:07]} 27. Kg2 {[%emt 0:01:02]} Qxa2 {[%emt 0:01:47]} 28. Rxh6+ {[%emt 0:01:08]} Kg8 {[%emt 0:00:29]} 29. Re6 {[%emt 0:01:53]} Qb1 {[%emt 0:02:29]} 30. e4 {[%emt 0:01:46]} Qd1 {[%emt 0:00:18]} 31. Qg5 {[%emt 0:03:16]} Qd4 {[%emt 0:08:24]} 32. b3 {[%emt 0:02:02]} b5 {[%emt 0:03:26]} 33. Qg6 {[%emt 0:01:47]} Qd7 {[%emt 0:08:42]} 34. f5 {[%emt 0:01:08]} Qd8 {[%emt 0:01:56]} 35. Rc6 {[%emt 0:04:47]} Qe7 {[%emt 0:03:08]} 36. Qe6+ {[%emt 0:00:32]} Qxe6 {[%emt 0:02:13]} 37. fxe6 {[%emt 0:00:05]} Re8 {[%emt 0:00:32]} 38. Kf3 {[%emt 0:00:32]} c4 {[%emt 0:00:52]} 39. bxc4 {[%emt 0:00:05]} bxc4 {[%emt 0:00:55]} 40. Kf4 {[%emt 0:00:29]} a5 {[%emt 0:00:33]} 41. Ke5 {[%emt 0:00:11]} a4 {[%emt 0:00:28]} 42. Rxc4 {[%emt 0:00:08]} Ra8 {[%emt 0:00:05]} 43. Rc2 {[%emt 0:01:09]} Ra6 {[%emt 0:00:29]} 44. Rc8+ {[%emt 0:00:20]} Kh7 {[%emt 0:00:19]} 45. e7 {[%emt 0:00:06]} Ra8 {[%emt 0:11:21]} 46. Kf4 {[%emt 1:00:02]} a3 1-0